fUSD/lending_fUSD_20240823
["ID","MTS","AMOUNT","RATE_DAILY","PERIOD"]
[335697312,1724440243012,-532.35328105,0.0001799,3]
[335697551,1724440245436,-329.968208,0.000169,2]
[335697552,1724440245446,-57.61240668,0.00017977,5]
[335697555,1724440245457,-442.38759332,0.00017977,5]
[335697557,1724440245467,-570.76373663,0.0001798,5]
[335697559,1724440245476,-7836.4148542,0.0001799,3]
[335697561,1724440245488,-776.31930374,0.0001799,3]
[335697563,1724440245499,-1278.44042038,0.0001799,3]
[335697582,1724440245902,-5177.5175671,0.0001799,3]
[335697583,1724440245913,-6154.01807628,0.0001799,3]
[335697584,1724440245924,-582.27653367,0.0001799,3]
[335697585,1724440245935,-17714.41253113,0.0001799,3]
[335697586,1724440245947,-10544.62938039,0.0001799,3]
[335697587,1724440245958,-3589.98717869,0.0001799,3]
[335697588,1724440245969,-765.67486631,0.0001799,3]
[335697589,1724440245980,-324.95834368,0.0001799,3]
[335697590,1724440245997,-14528.6722256,0.0001799,3]
[335697591,1724440246012,-924.64607863,0.0001799,3]
[335697592,1724440246024,-422.24066894,0.0001799,3]
[335697593,1724440246035,-470.22347517,0.0001799,3]
[335697594,1724440246046,-1473.58871669,0.0001799,3]
[335697595,1724440246057,-8571.89705668,0.0001799,3]
[335697596,1724440246068,-18928.28396012,0.0001799,3]
[335697597,1724440246079,-810.40833445,0.0001799,3]
[335697598,1724440246094,-193135.12879708,0.0001799,3]
[335697599,1724440246105,-43108.08925,0.0001799,3]
[335697600,1724440246117,-812.36309393,0.0001799,3]
[335697601,1724440246128,-2318.42279138,0.0001799,3]
[335697602,1724440246139,-2152.65565936,0.0001799,3]
[335697603,1724440246150,-2015.57078776,0.0001799,3]
[335697604,1724440246165,-1569.25968238,0.0001799,3]
[335697605,1724440246175,-379.89623438,0.0001799,3]
[335697606,1724440246186,-959.66047797,0.0001799,3]
[335697607,1724440246197,-607.71676,0.0001799,3]
[335697630,1724440250268,1050.0,0.0001,2]
[335697631,1724440251925,219.49,0.00025,90]
[335697661,1724440391094,150.179613,0.00025,60]
[335697665,1724440394153,1000.0,0.00027,120]
[335697666,1724440394554,1000.0,0.00027,120]
[335697674,1724440424558,500.0,0.00027,120]
[335697684,1724440437771,200.0,0.00027,120]
[335697704,1724440506426,800.0,0.00026986,120]
[335697705,1724440648818,747.69445694,0.00027,120]
[335697708,1724440990933,150.179613,0.00025,60]
[335697709,1724440993345,1000.0,0.00027,120]
[335697710,1724440993733,1000.0,0.00027,120]
[335697712,1724441024397,500.0,0.00027,120]
[335697713,1724441037910,200.0,0.00027,120]
[335697794,1724441205171,309.33153452,0.00025,90]
[335697830,1724441431617,-794.0,0.00010014,2]
[335697831,1724441431626,-794.0,0.00010014,2]
[335697832,1724441431637,-794.0,0.00010014,2]
[335697835,1724441431646,-794.0,0.00010527,2]
[335697837,1724441431656,-604.09742392,0.00010799,2]
[335697840,1724441431668,-300.0,0.00010899,2]
[335697842,1724441431678,-300.0,0.00010899,2]
[335697843,1724441431687,-171.44570036,0.000109,2]
[335697845,1724441431697,-152.67384192,0.000109,2]
[335697847,1724441431706,-577.1359701,0.000109,2]
[335697848,1724441431716,-178.16928868,0.000109,2]
[335697850,1724441431725,-704.95211394,0.000109,2]
[335697852,1724441431735,-175.26289119,0.000109,2]
[335697854,1724441431745,-168.9,0.00010959,2]
[335697856,1724441431754,-7815.71514332,0.00010993,2]
[335697857,1724441431766,-150.0,0.00010996,2]
[335697859,1724441431775,-45233.54346304,0.00010997,2]
[335697861,1724441431786,-2195.73008022,0.00010997,2]
[335697863,1724441431804,-2164.3024046,0.00010997,2]
[335697865,1724441431814,-500.0,0.00010999,2]
[335697866,1724441431823,-500.0,0.00010999,2]
[335697868,1724441431832,-500.0,0.00010999,2]
[335697869,1724441431841,-517.26,0.00010999,2]
[335697871,1724441431851,-500.0,0.00010999,2]
[335697872,1724441431860,-500.0,0.00010999,2]
[335697874,1724441431869,-500.0,0.00010999,2]
[335697875,1724441431879,-177.79395471,0.00010999,2]
[335697876,1724441431888,-199.30226172,0.00010999,2]
[335697877,1724441431897,-299.99,0.00010999,2]
[335697878,1724441431907,-18.25137897,0.00011,2]
[335697879,1724441431924,-2835.3467,0.00011,2]
[335697899,1724441437694,-200.0,0.00010973,2]
[335697900,1724441437704,-4915.40000004,0.00011,2]
[335697901,1724441437716,-2575.55880004,0.00011,2]
[335697902,1724441437728,-1294.315,0.00011,2]
[335697903,1724441437739,-1378.66509581,0.00011,2]
[335697904,1724441437751,-1475.64,0.00011,2]
[335697905,1724441437762,-3188.15060176,0.00011,2]
[335697906,1724441437844,-1750.21165066,0.00011,2]
[335697907,1724441437895,-59818.10872894,0.00011,2]
[335697908,1724441437907,-1275.036,0.00011,2]
[335697909,1724441437918,-6627.49815229,0.00011,2]
[335697969,1724441439798,-778.37844432,0.00011,2]
[335697970,1724441439810,-931.84952515,0.00011,2]
[335697971,1724441439823,-4010.51473454,0.00011,2]
[335697972,1724441439835,-4374.67615636,0.00011,2]
[335697973,1724441439848,-26641.17337603,0.00011,2]
[335697974,1724441439859,-1486.46443087,0.00011,2]
[335697975,1724441439871,-381830.8555566,0.00011,2]
[335697976,1724441439896,-3895.58825898,0.00011,2]
[335697977,1724441439908,-319.09613712,0.00011,2]
[335697978,1724441439919,-319.08,0.00011,2]
[335697979,1724441439930,-24912.89410395,0.00011,2]
[335697980,1724441439942,-1031.62651515,0.00011,2]
[335697981,1724441440052,-2905.599178,0.00011,2]
[335697982,1724441440063,-597486.93938996,0.00011,2]
[335697983,1724441440075,-15941.87016729,0.00011,2]
[335697984,1724441440087,-395.93130951,0.00011,2]
[335697985,1724441440120,-356.19588052,0.00011,2]
[335697986,1724441440136,-682.60523184,0.00011,2]
[335697987,1724441440155,-2988.78326536,0.00011,2]
[335697988,1724441440172,-7583.60000003,0.00011,2]
[335697990,1724441440188,-12997.90260949,0.00011,2]
[335697992,1724441440203,-261.54631587,0.00011,2]
[335697994,1724441440218,-711.3485025,0.00011,2]
[335697995,1724441440232,-3079.4616,0.00011,2]
[335698004,1724441442792,-367.73948961,0.00011,2]
[335698005,1724441442806,-1067.81353758,0.00011,2]
[335698006,1724441442820,-455.24917089,0.00011,2]
[335698008,1724441442835,-489.18296135,0.00011,2]
[335698010,1724441442850,-362.76485203,0.00011,2]
[335698011,1724441442862,-1267.53629767,0.00011,2]
[335698012,1724441442875,-632.93440001,0.00011,2]
[335698013,1724441442889,-242992.47263957,0.00011,2]
[335698014,1724441442905,-705.64297035,0.00011,2]
[335698015,1724441442918,-2558.2578458,0.00011,2]
[335698016,1724441442930,-11867.08119869,0.00011,2]
[335698017,1724441442945,-530.05992504,0.00011,2]
[335698018,1724441442958,-8739.00278943,0.00011,2]
[335698019,1724441442970,-579.35,0.00011,2]
[335698020,1724441442987,-483.01750003,0.00011,2]
[335698021,1724441442999,-407.28471259,0.00011,2]
[335698022,1724441443011,-8838.32611629,0.00011,2]
[335698023,1724441443026,-3166.05924939,0.00011,2]
[335698024,1724441443040,-1668.02297108,0.00011,2]
[335698025,1724441443053,-2467.1499995,0.00011,2]
[335698026,1724441443066,-571.48088153,0.00011,2]
[335698027,1724441443080,-544.7642207,0.00011,2]
[335698029,1724441443093,-573.13178596,0.00011,2]
[335698032,1724441443106,-373.5132,0.00011,2]
[335698034,1724441443122,-12754.46134342,0.00011,2]
[335698035,1724441443142,-35596.65073552,0.00011,2]
[335698036,1724441443156,-5958.007393,0.00011,2]
[335698037,1724441443171,-16131.35766248,0.00011,2]
[335698038,1724441443188,-106805.29095958,0.00011,2]
[335698040,1724441443202,-301.92451265,0.00011,2]
[335698041,1724441443226,-2179.86755184,0.00011,2]
[335698048,1724441445700,-264.62887448,0.00011,2]
[335698049,1724441445713,-360.08234564,0.00011,2]
[335698050,1724441445726,-1189.02918722,0.00011,2]
[335698051,1724441445739,-2733.38035353,0.00011,2]
[335698052,1724441445755,-1280.81103182,0.00011,2]
[335698053,1724441445768,-15553.24533523,0.00011,2]
[335698054,1724441445781,-1486.66666005,0.00011,2]
[335698055,1724441445794,-341.13686896,0.00011,2]
[335698056,1724441445812,-299.28138116,0.00011,2]
[335698057,1724441445825,-555.0,0.00011,2]
[335698058,1724441445838,-1325.98466,0.00011,2]
[335698059,1724441445851,-887.59061478,0.00011,2]
[335698060,1724441445864,-4994.61127258,0.00011,2]
[335698061,1724441445877,-412.31193953,0.00011,2]
[335698062,1724441445891,-598.14476084,0.00011,2]
[335698063,1724441445924,-300.025825,0.000109,2]
[335698064,1724441445938,-37.22933734,0.000109,2]
[335698065,1724441445949,-867.41729014,0.00011,2]
[335698066,1724441445962,-7968.77538251,0.00011,2]
[335698067,1724441445974,-1246.58900404,0.00011,2]
[335698068,1724441445987,-12203.4454117,0.00011,2]
[335698069,1724441446000,-581.02513369,0.00011,2]
[335698070,1724441446012,-7323.23000964,0.00011,2]
[335698071,1724441446024,-508.5,0.00011,2]
[335698072,1724441446037,-509411.57659398,0.00011,2]
[335698073,1724441446049,-17614.77864084,0.00011,2]
[335698074,1724441446066,-914.18041574,0.00011,2]
[335698075,1724441446079,-2800.21661438,0.00011,2]
[335698076,1724441446092,-5782.3416,0.00011,2]
[335698081,1724441473367,387.9,9.89e-05,2]
[335698082,1724441484898,839.2412,9.914e-05,2]
[335698083,1724441589941,150.179613,0.00025,60]
[335698084,1724441594318,1000.0,0.00027,120]
[335698085,1724441594747,1000.0,0.00027,120]
[335698086,1724441622343,500.0,0.00027,120]
[335698087,1724441636705,200.0,0.00027,120]
[335698111,1724442147575,412.77,8.349e-05,2]
[335698112,1724442181141,159.14561955,8.349e-05,2]
[335698113,1724442187299,1099.36692642,8.349e-05,2]
[335698114,1724442189816,150.179613,0.00025,60]
[335698115,1724442194287,1000.0,0.00027,120]
[335698116,1724442195127,1000.0,0.00027,120]
[335698117,1724442198016,291.80613083,8.349e-05,2]
[335698118,1724442222034,500.0,0.00027,120]
[335698119,1724442233622,345.145128,0.00027,120]
[335698120,1724442239714,760.92143895,8.349e-05,2]
[335698121,1724442282311,1783.27289503,0.00027,120]
[335698122,1724442348715,760.12973427,8.349e-05,2]
[335698125,1724442388273,2596.17663789,9.922e-05,2]
[335698128,1724442426049,23900.0,9.985e-05,2]
[335698129,1724442426977,1520.11,9.985e-05,2]
[335698130,1724442427740,150.179613,0.00025,60]
[335698131,1724442451504,333.14246009,9.926e-05,2]
[335698132,1724442479724,1106.00770764,0.00010009,2]
[335698133,1724442488604,155.1849344,0.00010009,2]
[335698134,1724442536665,395.88,9.98e-05,2]
[335698142,1724442556153,3000.0,0.00025,60]
[335698143,1724442557901,1791.90705976,0.00010009,2]
[335698144,1724442563522,250.0,9.944e-05,2]
[335698149,1724442575059,3051.9,0.00025,60]
[335698150,1724442575088,358.11,9.957e-05,2]
[335698156,1724442615947,603.91,9.926e-05,2]
[335698157,1724442631200,181.72,0.00010004,2]
[335698163,1724442631703,-1000.0,0.00010022,2]
[335698164,1724442631713,-753.23449409,0.00010063,2]
[335698165,1724442631758,-1772.05550591,0.00010063,2]
[335698166,1724442631767,-909.46121436,0.00010097,2]
[335698167,1724442631777,-267.33,0.00010145,2]
[335698168,1724442631788,-254.62,0.00010396,2]
[335698169,1724442631798,-143.6074095,0.00010566,2]
[335698170,1724442631810,-1154.59515398,0.00010566,2]
[335698171,1724442631820,-412.77,0.00010613,2]
[335698172,1724442631830,-150.0,0.00010685,2]
[335698173,1724442631839,-300.0,0.00010698,2]
[335698174,1724442631848,-150.99,0.00010699,2]
[335698175,1724442631857,-309.34344666,0.00010699,2]
[335698176,1724442631867,-477.08654469,0.00010699,2]
[335698177,1724442631876,-428.76302165,0.00010713,2]
[335698178,1724442631888,-160.9962003,0.00010713,2]
[335698179,1724442631898,-563.33203831,0.00010799,2]
[335698180,1724442631907,-432.79780732,0.00010799,2]
[335698181,1724442631916,-186.03740953,0.00010799,2]
[335698182,1724442631925,-685.40080271,0.00010852,2]
[335698183,1724442631934,-253.82565445,0.00010852,2]
[335698184,1724442631943,-262.0,0.0001086,2]
[335698185,1724442631953,-527.19740296,0.00010861,2]
[335698186,1724442631978,-330.4044326,0.00010862,2]
[335698187,1724442631988,-756.11201824,0.00010862,2]
[335698188,1724442631998,-570.89142372,0.00010888,2]
[335698189,1724442632007,-155.0,0.00010888,2]
[335698190,1724442632016,-337.835,0.0001089,2]
[335698191,1724442632026,-218.58238169,0.0001089,2]
[335698192,1724442632035,-1766.8108,0.0001089,2]
[335698193,1724442632045,-213.584,0.00010899,2]
[335698194,1724442632055,-183.89706622,0.00010899,2]
[335698195,1724442632064,-150.0,0.00010899,2]
[335698196,1724442632073,-337.25516234,0.00010899,2]
[335698197,1724442632082,-2112.28624346,0.00010899,2]
[335698198,1724442632092,-454.83956636,0.00010899,2]
[335698199,1724442632102,-335.4322,0.000109,2]
[335698200,1724442632111,-5084.50871478,0.000109,2]
[335698201,1724442632122,-916.50168511,0.000109,2]
[335698202,1724442632134,-484.55762474,0.000109,2]
[335698203,1724442632145,-482.99531256,0.000109,2]
[335698204,1724442632156,-488.29864495,0.000109,2]
[335698205,1724442632167,-1042.5,0.000109,2]
[335698206,1724442632178,-3132.92131786,0.000109,2]
[335698207,1724442632188,-12828.72765152,0.000109,2]
[335698208,1724442632199,-377.86782155,0.000109,2]
[335698209,1724442632210,-18937.08682693,0.000109,2]
[335698210,1724442632220,-6542.10044837,0.000109,2]
[335698211,1724442632243,-179.49475163,0.000109,2]
[335698212,1724442632252,-1000.0,0.000109,2]
[335698213,1724442632261,-266.78618445,0.000109,2]
[335698224,1724442637756,-733.21381555,0.000109,2]
[335698225,1724442637766,-618.48754997,0.000109,2]
[335698226,1724442637777,-1200.0,0.000109,2]
[335698227,1724442637793,-1781.28071201,0.000109,2]
[335698228,1724442637814,-280.39344322,0.000109,2]
[335698229,1724442637826,-321.91275605,0.000109,2]
[335698230,1724442637837,-6910.44033875,0.000109,2]
[335698231,1724442637847,-6391.34314485,0.000109,2]
[335698232,1724442637857,-616.83309968,0.000109,2]
[335698233,1724442637867,-150.0,0.00010959,2]
[335698234,1724442637876,-250.0,0.00010959,2]
[335698235,1724442637886,-537.65,0.00010959,2]
[335698236,1724442637895,-27846.60070716,0.0001099,2]
[335698237,1724442637910,-12851.8,0.0001099,2]
[335698238,1724442637922,-1710.00000005,0.0001099,2]
[335698239,1724442637935,-422.93455817,0.0001099,2]
[335698240,1724442637947,-339.1733676,0.0001099,2]
[335698241,1724442637958,-5138.05560002,0.0001099,2]
[335698242,1724442637979,-28686.90924801,0.0001099,2]
[335698243,1724442637991,-705.3146958,0.0001099,2]
[335698244,1724442638035,-9005.59263688,0.0001099,2]
[335698245,1724442638048,-8173.52989368,0.0001099,2]
[335698246,1724442638091,-265.69,0.0001099,2]
[335698247,1724442638102,-758.11221771,0.0001099,2]
[335698376,1724442639898,-12550.0,0.0001099,2]
[335698377,1724442639910,-4286.32554,0.0001099,2]
[335698378,1724442639952,-453.85797983,0.0001099,2]
[335698380,1724442640061,-1494.09637253,0.0001099,2]
[335698381,1724442640120,-600.06729045,0.0001099,2]
[335698407,1724442642904,-1074.03261028,0.0001099,2]
[335698408,1724442642958,-887.904264,0.0001099,2]
[335698409,1724442643012,-604.22956137,0.0001099,2]
[335698410,1724442643023,-8314.06836395,0.0001099,2]
[335698429,1724442645752,-327.97891729,0.0001099,2]
[335698430,1724442645914,-915.17933909,0.0001099,2]
[335698431,1724442645927,-940.87063428,0.0001099,2]
[335698432,1724442645939,-3703.11815782,0.0001099,2]
[335698433,1724442645952,-17087.60699197,0.0001099,2]
[335698434,1724442645968,-22455.3772894,0.0001099,2]
[335698435,1724442645986,-1591.35,0.0001099,2]
[335698436,1724442646030,-9203.52430923,0.0001099,2]
[335698446,1724442661042,10000.0,0.00027,120]
[335698448,1724442680432,10000.0,0.00027,120]
[335698449,1724442698995,10000.0,0.00027,120]
[335698450,1724442716640,4793.6,0.00027,120]
[335698451,1724442794071,1000.0,0.00027,120]
[335698452,1724442794466,1000.0,0.00027,120]
[335698454,1724442814742,1000.0,0.00027,120]
[335698455,1724442820748,500.0,0.00027,120]
[335698457,1724442857410,3000.0,0.00027,120]
[335698458,1724442866510,394.41,8.485e-05,2]
[335698459,1724442885303,1000.0,0.00027,120]
[335698460,1724442912771,2000.0,0.00027,120]
[335698461,1724443334476,3718.11897,0.00025,60]
[335698475,1724443394718,1000.0,0.00027,120]
[335698476,1724443395124,1000.0,0.00027,120]
[335698477,1724443399079,374.68,8.219e-05,2]
[335698478,1724443421387,500.0,0.00027,120]
[335698479,1724443437836,800.0,9.893e-05,2]
[335698480,1724443481861,267.33,9.904e-05,2]
[335698481,1724443544704,23900.0,9.892e-05,2]
[335698576,1724443580849,177.83,9.887e-05,2]
[335698603,1724443677074,150.0,0.00025,60]
[335698605,1724443688968,150.0,0.00027,120]
[335698608,1724443728230,3939.02654262,0.00010009,2]
[335698612,1724443745398,1139.85619888,0.00010009,2]
[335698614,1724443779283,170.6347928,0.00010009,2]
[335698615,1724443793883,1051.05102404,0.00010009,2]
[335698616,1724443798205,413.35824992,0.00010009,2]
[335698617,1724443810040,300.23953365,0.00010009,2]
[335698618,1724443812178,547.52651326,0.00010009,2]
[335698619,1724443813199,485.07840464,0.00010009,2]
[335698620,1724443818859,2386.8149171,0.00010009,2]
[335698621,1724443826166,300.23953365,0.00010009,2]
[335698622,1724443831551,162.85453106,0.00010009,2]
[335698635,1724443831921,-218.18,0.00010025,2]
[335698636,1724443831932,-522.9745894,0.00010097,2]
[335698637,1724443831942,-200.0,0.00010439,2]
[335698638,1724443831951,-374.68,0.00010471,2]
[335698639,1724443831960,-454.83956636,0.00010471,2]
[335698640,1724443831972,-421.74891164,0.00010566,2]
[335698641,1724443831982,-300.0,0.00010699,2]
[335698642,1724443831992,-300.0,0.00010699,2]
[335698643,1724443832002,-2767.2662,0.000107,2]
[335698644,1724443832011,-300.0,0.000107,3]
[335698645,1724443832020,-285.09399028,0.000107,2]
[335698646,1724443832032,-37.15600972,0.000107,2]
[335698647,1724443832041,-978.66126287,0.000107,2]
[335698648,1724443832052,-21.32873713,0.000107,2]
[335698649,1724443832061,-435.96296366,0.000107,2]
[335698650,1724443832133,-164.00703634,0.000107,2]
[335698651,1724443832143,-334.63591116,0.00010713,2]
[335698652,1724443832154,-1026.39824093,0.00010713,2]
[335698653,1724443832559,181.97999253,0.00010009,2]
[335698720,1724443837963,-155.0,0.00010026,2]
[335698721,1724443837974,-0.59584791,0.00010713,2]
[335698722,1724443837984,-2904.55486475,0.00010713,2]
[335698723,1724443837996,-197.37513525,0.00010713,2]
[335698724,1724443838006,-150.99,0.00010713,2]
[335698725,1724443838016,-270.39400911,0.00010713,2]
[335698726,1724443838028,-572.56166098,0.00010713,2]
[335698727,1724443838039,-4478.23432991,0.00010713,2]
[335698728,1724443838049,-911.76,0.00010713,2]
[335698729,1724443838058,-150.0,0.00010778,2]
[335698730,1724443838067,-4447.9117538,0.00010779,2]
[335698731,1724443838078,-914.81898883,0.00010779,2]
[335698732,1724443838093,-373.59450961,0.00010779,2]
[335698733,1724443838104,-1136.8850001,0.00010779,2]
[335698734,1724443838123,-22537.18002361,0.00010779,2]
[335698735,1724443838135,-1079.34910173,0.00010779,2]
[335698736,1724443838146,-23674.48779793,0.00010779,2]
[335698737,1724443838177,-6360.38730829,0.00010779,2]
[335698738,1724443838187,-7334.61269171,0.00010789,2]
[335698739,1724443838208,-1169.55400002,0.00010789,2]
[335698740,1724443838231,-42994.13330827,0.00010789,2]
[335698741,1724443838241,-14050.9812,0.0001079,2]
[335698742,1724443838251,-9994.0787,0.0001079,2]
[335698743,1724443838260,-24346.249,0.0001079,2]
[335698744,1724443838269,-163.6,0.0001079,2]
[335698745,1724443838278,-150.99,0.00010799,2]
[335698746,1724443838288,-700.0,0.000108,3]
[335698747,1724443838297,-500.0,0.00010832,2]
[335698748,1724443838306,-500.0,0.00010841,2]
[335698749,1724443838315,-4148.35,0.00010841,2]
[335698750,1724443838325,-500.0,0.00010849,2]
[335698751,1724443838334,-500.0,0.00010858,2]
[335698752,1724443838343,-4491.2,0.00010859,2]
[335698753,1724443838353,-499.99,0.00010859,2]
[335698754,1724443838363,-299.99,0.00010859,2]
[335698755,1724443838372,-500.0,0.00010867,2]
[335698756,1724443838381,-500.0,0.00010876,2]
[335698757,1724443838390,-500.0,0.00010885,2]
[335698758,1724443838400,-1592.06824958,0.0001089,2]
[335698759,1724443838410,-72128.0325,0.0001089,2]
[335698760,1724443838419,-29414.0238,0.0001089,2]
[335698761,1724443838428,-1000.0,0.0001089,2]
[335698762,1724443838439,-2962.7443,0.0001089,2]
[335698763,1724443838448,-971.4599,0.0001089,2]
[335698765,1724443838458,-706.5746,0.0001089,2]
[335698767,1724443838467,-950.2599,0.0001089,2]
[335698768,1724443838477,-500.0,0.00010893,2]
[335698769,1724443838486,-9014.43116348,0.00010899,2]
[335698770,1724443838495,-175.26289118,0.000109,2]
[335698771,1724443838505,-1000.0,0.000109,3]
[335698772,1724443838513,-539.72896222,0.000109,2]
[335698774,1724443838523,-163.67346564,0.000109,2]
[335698775,1724443838532,-304.09094001,0.000109,2]
[335698776,1724443838541,-500.0,0.00010902,2]
[335698777,1724443838550,-500.0,0.00010911,2]
[335698779,1724443838560,-500.0,0.0001092,2]
[335698781,1724443838569,-500.0,0.00010929,2]
[335698783,1724443838579,-500.0,0.00010937,2]
[335698785,1724443838588,-500.0,0.00010946,2]
[335698787,1724443838598,-500.0,0.00010955,2]
[335698788,1724443838607,-500.0,0.00010958,2]
[335698789,1724443838617,-500.0,0.00010958,2]
[335698790,1724443838626,-169.22,0.00010959,2]
[335698791,1724443838636,-1500.0,0.00010959,2]
[335698792,1724443838645,-250.0,0.00010959,2]
[335698793,1724443838655,-500.0,0.00010964,2]
[335698794,1724443838664,-500.0,0.00010973,2]
[335698795,1724443838673,-500.0,0.00010981,2]
[335698796,1724443838683,-500.0,0.00010988,2]
[335698797,1724443838696,-500.0,0.00010988,2]
[335698798,1724443838711,-500.0,0.00010988,2]
[335698799,1724443838721,-500.0,0.00010988,2]
[335698800,1724443838730,-500.0,0.00010988,2]
[335698801,1724443838740,-500.0,0.00010988,2]
[335698802,1724443838751,-220.63546901,0.00010988,2]
[335698803,1724443838760,-500.0,0.00010988,2]
[335698804,1724443838770,-500.0,0.00010989,2]
[335698805,1724443838779,-500.0,0.00010989,2]
[335698806,1724443838788,-500.0,0.00010989,2]
[335698808,1724443838798,-500.0,0.00010989,2]
[335698810,1724443838807,-500.0,0.00010989,2]
[335698811,1724443838817,-254.08458239,0.00010989,2]
[335698812,1724443838826,-402.72070823,0.00010989,2]
[335698813,1724443838835,-500.0,0.00010989,2]
[335698814,1724443838845,-500.0,0.00010989,2]
[335698815,1724443838854,-500.0,0.00010989,2]
[335698816,1724443838864,-500.0,0.00010989,2]
[335698817,1724443838874,-500.0,0.00010989,2]
[335698818,1724443838884,-500.0,0.00010989,2]
[335698819,1724443838896,-500.0,0.00010989,2]
[335698820,1724443838905,-500.0,0.00010989,2]
[335698821,1724443838914,-500.0,0.00010989,2]
[335698822,1724443838924,-500.0,0.00010989,2]
[335698823,1724443838935,-500.0,0.00010989,2]
[335698824,1724443838945,-500.0,0.00010989,2]
[335698825,1724443838954,-500.0,0.00010989,2]
[335698826,1724443838964,-500.0,0.00010989,2]
[335698827,1724443838976,-553.64382277,0.00010989,2]
[335698828,1724443838986,-172.06136306,0.00010989,2]
[335698829,1724443838996,-14813.54224408,0.00010989,2]
[335698830,1724443839006,-500.0,0.00010989,2]
[335698831,1724443839015,-601.97,0.00010989,2]
[335698832,1724443839025,-2342.45587798,0.00010989,2]
[335698833,1724443839034,-500.0,0.00010989,2]
[335698834,1724443839045,-500.0,0.00010989,2]
[335698835,1724443839055,-500.0,0.00010989,2]
[335698836,1724443839064,-162.08193888,0.0001099,2]
[335698837,1724443839074,-500.0,0.0001099,2]
[335698838,1724443839084,-500.0,0.00010998,2]
[335698839,1724443839094,-500.0,0.00010999,2]
[335698840,1724443839103,-253.47652751,0.00010999,2]
[335698841,1724443839113,-500.0,0.00010999,2]
[335698842,1724443839122,-500.0,0.00010999,2]
[335698843,1724443839131,-500.0,0.00010999,2]
[335698844,1724443839140,-500.0,0.00010999,2]
[335698845,1724443839150,-234.86166826,0.00010999,2]
[335698846,1724443839159,-548.68914803,0.00010999,2]
[335698847,1724443839169,-500.0,0.00010999,2]
[335698848,1724443839178,-500.0,0.00010999,2]
[335698849,1724443839187,-529.25000006,0.00010999,2]
[335698850,1724443839205,-500.0,0.00010999,2]
[335698851,1724443839215,-500.0,0.00010999,2]
[335698852,1724443839225,-500.0,0.00010999,2]
[335698853,1724443839234,-500.0,0.00010999,2]
[335698854,1724443839243,-500.0,0.00010999,2]
[335698855,1724443839253,-500.0,0.00010999,2]
[335698856,1724443839262,-500.0,0.00010999,2]
[335698857,1724443839272,-250.4,0.00010999,2]
[335698858,1724443839281,-317.10742205,0.00010999,2]
[335698859,1724443839291,-629.05909233,0.00010999,2]
[335698860,1724443839300,-500.0,0.00010999,2]
[335698861,1724443839309,-14393.79624548,0.00011,2]
[335698862,1724443839322,-420.0,0.00011,2]
[335698863,1724443839333,-424.5,0.00011,2]
[335698864,1724443839345,-5200.0,0.00011,2]
[335698865,1724443839356,-585.14741553,0.00011,2]
[335698866,1724443839367,-796.44791203,0.00011,2]
[335698871,1724443839972,-8215.81430112,0.00011,2]
[335698872,1724443839983,-108443.91114566,0.00011,2]
[335698874,1724443839995,-1504.411741,0.00011,2]
[335698875,1724443840022,-1052.47247452,0.00011,2]
[335698876,1724443840034,-1357.23421758,0.00011,2]
[335698877,1724443840131,-89493.00286925,0.00011,2]
[335698878,1724443840143,-49719.13696804,0.00011,2]
[335698879,1724443840155,-18315.00000001,0.00011,2]
[335698880,1724443840167,-933.43431332,0.00011,2]